bitfinex/quotes_BTCUSD_20240927
["timestamp","ask_amount","ask_price","bid_price","bid_amount"]
[1727449765614,0.000829,66346.0,66345.0,0.67237294]
[1727449765817,0.002829,66346.0,66345.0,0.68937294]
[1727449766245,0.001829,66346.0,66345.0,0.68137294]
[1727449767288,0.23090191,66378.0,66348.0,0.00498062]
[1727449767289,0.04492849,66365.0,66348.0,0.00498062]
[1727449767525,0.33822314,66370.0,66353.0,0.95088202]
[1727449767526,0.22590191,66363.0,66353.0,0.95088202]
[1727449767735,0.22590191,66363.0,66353.0,0.79559408]
[1727449767954,0.22590191,66363.0,66353.0,0.53598962]
[1727449768641,0.001869,66354.0,66353.0,0.53598962]
[1727449768897,0.001869,66354.0,66353.0,0.79559408]
[1727449769151,0.000869,66354.0,66353.0,0.79559408]
[1727449769375,0.001869,66354.0,66353.0,0.80359408]
[1727449770093,0.001869,66354.0,66353.0,0.54398962]
[1727449770855,0.001869,66354.0,66353.0,0.67129694]
[1727449771111,0.001869,66354.0,66353.0,1.38129694]
[1727449771112,0.002869,66354.0,66353.0,1.38129694]
[1727449771610,0.002869,66354.0,66353.0,0.68129694]
[1727449771947,0.002869,66354.0,66353.0,0.27328794]
[1727449772137,0.002869,66354.0,66353.0,0.42399694]
[1727449773848,0.002869,66354.0,66353.0,0.27328794]
[1727449774095,0.153575,66354.0,66353.0,0.27328794]
[1727449774331,0.001869,66354.0,66353.0,0.26328794]
[1727449774632,0.301419,66353.0,66344.0,0.2778]
[1727449774849,0.000869,66354.0,66349.0,0.150716]
[1727449774850,0.001869,66354.0,66349.0,0.150716]
[1727449775133,0.151575,66354.0,66353.0,0.005]
[1727449775347,0.150712,66352.0,66346.0,0.15528794]
[1727449775595,0.150722,66347.0,66346.0,0.15528794]
[1727449776097,0.150722,66347.0,66346.0,0.1]
[1727449776402,0.150724,66346.0,66345.0,0.001658]
[1727449776628,0.41392781,66346.0,66345.0,0.001658]
[1727449776850,0.41032846,66346.0,66345.0,0.001658]
[1727449777797,0.63623037,66346.0,66345.0,0.001658]
[1727449778050,0.45527582,66346.0,66345.0,0.001658]
[1727449778572,0.45527582,66346.0,66345.0,0.002658]
[1727449778573,0.22414505,66346.0,66345.0,0.002658]
[1727449778801,0.150724,66346.0,66345.0,0.001658]
[1727449779026,0.160724,66346.0,66345.0,0.002658]
[1727449779254,0.2057278,66346.0,66345.0,0.001658]
[1727449779495,0.150724,66346.0,66345.0,0.001658]
[1727449779723,0.006,66346.0,66345.0,0.30867294]
[1727449780230,0.006,66346.0,66345.0,0.15794594]
[1727449780452,0.006,66346.0,66345.0,0.30867294]
[1727449780915,0.004,66346.0,66345.0,0.30767294]
[1727449781396,0.003,66346.0,66345.0,0.30767294]
[1727449781642,0.150718,66349.0,66345.0,0.30767094]
[1727449781866,0.004,66346.0,66345.0,0.30767294]
[1727449782166,0.001,66346.0,66345.0,0.30767294]
[1727449782391,0.150721,66348.0,66345.0,0.15694594]
[1727449782617,0.150718,66349.0,66345.0,0.31467194]
[1727449782839,0.150718,66349.0,66345.0,0.31167194]
[1727449783297,0.301428,66351.0,66345.0,0.16094594]
[1727449783534,0.150718,66349.0,66345.0,0.31167194]
[1727449783758,0.0450038,66352.0,66345.0,0.16094594]
[1727449784002,0.04498617,66352.0,66349.0,0.150717]
[1727449784236,0.150714,66351.0,66345.0,0.45839794]
[1727449784465,0.001,66346.0,66345.0,0.61512494]
[1727449784736,0.002,66346.0,66345.0,0.62012494]
[1727449784966,0.001,66346.0,66345.0,0.61512494]
[1727449785418,0.001,66352.0,66350.0,0.150715]
[1727449785654,0.302284,66354.0,66347.0,0.301442]
[1727449785887,0.150712,66352.0,66349.0,0.150716]
[1727449786115,0.150714,66351.0,66346.0,0.301447]
[1727449786343,0.150711,66353.0,66346.0,0.15528794]
[1727449786585,0.000869,66354.0,66351.0,0.150711]
[1727449786811,0.150711,66352.0,66349.0,0.150717]
[1727449787039,0.150711,66352.0,66348.0,0.30144]
[1727449787040,0.000869,66354.0,66348.0,0.30144]
[1727449787294,0.000869,66354.0,66353.0,0.150709]
[1727449787523,0.000869,66354.0,66353.0,0.30599694]
[1727449788229,0.000869,66354.0,66353.0,0.40599694]
[1727449788693,0.000869,66354.0,66353.0,0.40699694]
[1727449788921,0.000869,66354.0,66353.0,0.40599694]
[1727449789422,0.002869,66354.0,66353.0,0.41999694]
[1727449789660,0.002869,66354.0,66353.0,0.90047947]
[1727449789942,0.04501342,66371.0,66370.0,0.23057]
[1727449790161,0.04501342,66380.0,66377.0,0.150654]
[1727449790390,0.04501342,66380.0,66370.0,0.0799]
[1727449790391,0.04501342,66383.0,66382.0,0.150643]
[1727449790620,0.22590191,66385.0,66378.0,0.301303]
[1727449790856,0.04501342,66386.0,66385.0,0.150636]
[1727449791085,0.09002685,66390.0,66385.0,0.32498794]
[1727449791086,0.04501342,66390.0,66385.0,0.32498794]
[1727449791322,0.06917814,66391.0,66385.0,0.32498794]
[1727449791323,0.22590191,66387.0,66385.0,0.32498794]
[1727449791557,0.001658,66391.0,66378.0,0.1]
[1727449791799,0.301271,66386.0,66379.0,0.15528794]
[1727449792030,0.150647,66381.0,66379.0,0.15528794]
[1727449792265,0.301275,66385.0,66379.0,0.15528794]
[1727449792538,0.150646,66381.0,66379.0,0.15528794]
[1727449792761,0.301275,66385.0,66379.0,0.15528794]
[1727449792762,0.150647,66380.0,66379.0,0.15528794]
[1727449793043,0.150647,66380.0,66379.0,0.15628794]
[1727449793286,0.150647,66380.0,66379.0,0.001]
[1727449794714,0.04493541,66388.0,66379.0,0.001]
[1727449794715,0.150645,66381.0,66379.0,0.001]
[1727449794959,0.150645,66381.0,66376.0,0.150655]
[1727449795196,0.150642,66383.0,66379.0,0.001]
[1727449795438,0.000829,66380.0,66379.0,0.001]
[1727449795685,0.000829,66380.0,66379.0,0.15265]
[1727449795903,0.000829,66380.0,66379.0,0.15065]
[1727449796156,0.000829,66380.0,66379.0,0.30593794]
[1727449796898,0.000829,66380.0,66379.0,0.31093794]
[1727449797134,0.000829,66380.0,66379.0,0.16028794]
[1727449798064,0.000829,66380.0,66379.0,0.15528794]
[1727449798309,0.001829,66380.0,66379.0,0.16128794]
[1727449798546,0.152476,66380.0,66379.0,0.16628794]
[1727449798778,0.151476,66380.0,66379.0,0.15528794]
[1727449799029,0.150664,66373.0,66369.0,0.150672]
[1727449799265,0.001829,66380.0,66366.0,0.301354]
[1727449799266,0.301309,66377.0,66374.0,0.22590191]
[1727449799519,0.451965,66377.0,66375.0,0.15528794]
[1727449799792,0.150653,66378.0,66375.0,0.15528794]
[1727449800021,0.3013,66379.0,66375.0,0.15528794]
[1727449800022,0.001829,66380.0,66379.0,0.15665]
[1727449800255,0.001829,66380.0,66379.0,0.16628794]
[1727449800730,0.001829,66380.0,66379.0,0.31693794]
[1727449800970,0.000828,66393.0,66390.0,0.150625]
[1727449801212,0.000828,66393.0,66390.0,0.91712938]
[1727449801485,0.000828,66393.0,66390.0,0.94209802]
[1727449801732,0.000828,66393.0,66390.0,0.65451294]
[1727449802198,0.000828,66393.0,66390.0,1.35451294]
[1727449802450,0.000828,66393.0,66390.0,1.27291294]
[1727449802687,0.002658,66391.0,66390.0,1.28391294]
[1727449802926,0.003658,66391.0,66390.0,1.29391294]
[1727449803174,0.001658,66391.0,66390.0,0.57291294]
[1727449803420,0.32600742,66391.0,66390.0,0.014]
[1727449803660,0.003658,66391.0,66390.0,0.028]
[1727449804132,0.003658,66391.0,66390.0,0.178625]
[1727449804882,0.003658,66391.0,66390.0,0.92709547]
[1727449805124,0.003658,66391.0,66390.0,0.70119356]
[1727449805401,0.000828,66393.0,66392.0,0.00498062]
[1727449805645,0.000828,66412.0,66402.0,0.150597]
[1727449805646,0.22590191,66403.0,66402.0,0.150597]
[1727449805903,0.22590191,66403.0,66402.0,0.40588494]
[1727449806115,0.000828,66412.0,66405.0,0.250591]
[1727449806348,0.000828,66412.0,66405.0,0.40587894]
[1727449807058,0.301978,66412.0,66405.0,0.40587894]
[1727449807294,0.151417,66406.0,66405.0,0.85528794]
[1727449807537,0.000829,66406.0,66405.0,0.85528794]
[1727449808246,0.000829,66406.0,66405.0,0.38487894]
[1727449808497,0.000829,66406.0,66405.0,0.39687894]
[1727449808749,0.000829,66406.0,66405.0,0.38487894]
[1727449809225,0.000829,66406.0,66405.0,0.40287894]
[1727449809460,0.000829,66406.0,66405.0,0.39387894]
[1727449809689,0.000829,66406.0,66405.0,0.49687894]
[1727449810172,0.000829,66406.0,66405.0,0.50587894]
[1727449810686,0.000829,66406.0,66405.0,0.17628794]
[1727449811404,0.000829,66406.0,66405.0,0.31487894]
[1727449811645,0.000829,66406.0,66405.0,0.32487894]
[1727449812401,0.000829,66406.0,66405.0,0.30587894]
[1727449812638,0.000829,66406.0,66405.0,0.41587894]
[1727449812898,0.151417,66406.0,66405.0,0.022]
[1727449813133,0.000829,66406.0,66403.0,0.150593]
[1727449813376,0.000829,66406.0,66399.0,0.32590191]
[1727449813377,0.151417,66406.0,66405.0,0.009]
[1727449813859,0.151417,66406.0,66383.0,0.53718291]
[1727449813860,0.00442835,66406.0,66398.0,0.22590191]
[1727449814094,0.150601,66401.0,66398.0,0.32590191]
[1727449814332,0.301188,66404.0,66399.0,0.301208]
[1727449814333,0.40973308,66404.0,66399.0,0.301208]
[1727449814564,0.150593,66404.0,66400.0,0.150601]
[1727449814802,0.004829,66406.0,66398.0,0.1]
[1727449815031,0.150601,66401.0,66398.0,0.1]
[1727449815268,0.301188,66404.0,66398.0,0.1]
[1727449815512,0.004829,66406.0,66398.0,0.1]
[1727449815739,0.150598,66402.0,66398.0,0.250606]
[1727449815975,0.301196,66402.0,66398.0,0.1]
[1727449816230,0.003829,66406.0,66400.0,0.37650191]
[1727449816462,0.150594,66404.0,66400.0,0.1506]
[1727449816692,0.31660666,66405.0,66400.0,0.1506]
[1727449816693,0.301183,66405.0,66400.0,0.1506]
[1727449816926,0.301183,66405.0,66398.0,0.25528794]
[1727449816927,0.150596,66403.0,66399.0,0.150604]
[1727449817162,0.150596,66403.0,66399.0,0.30589194]
[1727449817630,0.301205,66400.0,66398.0,0.004]
[1727449817865,0.16602766,66399.0,66398.0,0.004]
[1727449818117,0.150604,66399.0,66398.0,0.004]
[1727449818577,0.150609,66397.0,66393.0,0.150617]
[1727449818821,0.301205,66400.0,66394.0,0.15528794]
[1727449819060,0.150603,66400.0,66396.0,0.15061]
[1727449819308,0.150597,66403.0,66399.0,0.151603]
[1727449819545,0.301187,66404.0,66398.0,0.150605]
[1727449819774,0.002,66399.0,66398.0,0.150605]
[1727449820233,0.150598,66402.0,66398.0,0.150605]
[1727449820470,0.150598,66402.0,66396.0,0.15528794]
[1727449820471,0.150608,66398.0,66396.0,0.15528794]
[1727449820744,0.000829,66406.0,66399.0,0.003]
[1727449820981,0.301187,66404.0,66399.0,0.003]
[1727449821216,0.1506,66401.0,66399.0,0.003]
[1727449821451,0.150602,66400.0,66399.0,0.003]
[1727449821682,0.301193,66403.0,66399.0,0.003]
[1727449821683,0.150599,66402.0,66399.0,0.003]
[1727449821925,0.150602,66400.0,66399.0,0.001656]
[1727449822415,0.15420135,66400.0,66399.0,0.001656]
[1727449822904,0.23720135,66400.0,66399.0,0.001656]
[1727449823136,0.23720135,66400.0,66399.0,0.005656]
[1727449823381,0.23720135,66400.0,66399.0,0.003656]
[1727449823382,0.25266691,66400.0,66399.0,0.003656]
[1727449823623,0.24906756,66400.0,66399.0,0.001656]
[1727449823876,0.26106756,66400.0,66399.0,0.003656]
[1727449824380,0.162602,66400.0,66399.0,0.003656]
[1727449825326,0.17806624,66400.0,66399.0,0.003656]
[1727449825794,0.17166559,66400.0,66399.0,0.002656]
[1727449826048,0.17966559,66400.0,66399.0,0.002656]
[1727449826274,0.150631,66387.0,66386.0,0.32590191]
[1727449826531,0.16609524,66387.0,66386.0,0.32590191]
[1727449826764,0.16609524,66387.0,66386.0,0.22590191]
[1727449826988,0.150645,66382.0,66380.0,0.001656]
[1727449827235,0.16614444,66381.0,66380.0,0.001656]
[1727449827490,0.42888387,66381.0,66380.0,0.001656]
[1727449827720,0.42528452,66381.0,66380.0,0.001656]
[1727449828205,0.40978508,66381.0,66380.0,0.001656]
[1727449828510,0.1661395,66381.0,66380.0,0.001656]
[1727449829456,0.42887893,66381.0,66380.0,0.001656]
[1727449829716,0.42827958,66381.0,66380.0,0.001656]
[1727449829964,0.0184945,66381.0,66380.0,0.001656]
[1727449830199,0.0154945,66381.0,66380.0,0.001656]
[1727449830671,0.0184945,66381.0,66380.0,0.001656]
[1727449830912,0.0154945,66381.0,66380.0,0.001656]
[1727449831385,0.301274,66385.0,66380.0,0.001656]
[1727449831386,0.301274,66385.0,66380.0,0.004656]
[1727449831663,0.150645,66381.0,66380.0,0.004656]
[1727449832594,0.150645,66381.0,66380.0,0.001656]
[1727449832828,0.00359935,66381.0,66376.0,0.22590191]
[1727449833066,0.150654,66377.0,66376.0,0.22590191]
[1727449833306,0.150644,66382.0,66376.0,0.22590191]
[1727449833563,0.301284,66383.0,66374.0,0.301318]
[1727449833793,0.04469106,66388.0,66372.0,0.401331]
[1727449833794,0.150651,66379.0,66375.0,0.30594494]
[1727449834032,0.301298,66380.0,66375.0,0.15528794]
[1727449834272,0.150651,66379.0,66375.0,0.30594594]
[1727449834498,0.150647,66381.0,66377.0,0.150654]
[1727449834726,0.301286,66382.0,66377.0,0.150654]
[1727449834727,0.150647,66380.0,66377.0,0.150654]
[1727449835181,0.150647,66381.0,66377.0,0.150653]
[1727449835421,0.150647,66381.0,66376.0,0.002]
[1727449835422,0.301294,66381.0,66376.0,0.002]
[1727449835645,0.15065,66379.0,66376.0,0.002]
[1727449836172,0.150652,66378.0,66376.0,0.002]
[1727449836399,0.301282,66383.0,66375.0,0.15528794]
[1727449836627,0.150646,66381.0,66377.0,0.150653]
[1727449836850,0.150646,66381.0,66377.0,0.004]
[1727449836851,0.301291,66381.0,66377.0,0.004]
[1727449837081,0.150652,66378.0,66377.0,0.004]
[1727449837312,0.150652,66378.0,66375.0,0.15528794]
[1727449837568,0.150652,66378.0,66366.0,0.0795]
[1727449837569,0.150674,66369.0,66366.0,0.0795]
[1727449837792,0.25914008,66376.0,66367.0,0.1]
[1727449837793,0.150671,66370.0,66367.0,0.1]
[1727449838061,0.301333,66372.0,66368.0,0.1]
[1727449838285,0.150676,66368.0,66364.0,0.150683]
[1727449838522,0.30134,66370.0,66365.0,0.1]
[1727449838787,0.51889654,66377.0,66362.0,0.301374]
[1727449838788,0.150683,66365.0,66362.0,0.1]
[1727449839016,0.301373,66363.0,66360.0,0.22590191]
[1727449839490,0.04469106,66372.0,66360.0,0.22590191]
[1727449839730,0.04469106,66372.0,66358.0,0.301391]
[1727449839731,0.150687,66363.0,66358.0,0.301391]
[1727449839966,0.27059297,66374.0,66358.0,0.15528794]
[1727449840194,0.150691,66361.0,66358.0,0.25528794]
[1727449840437,0.150687,66363.0,66359.0,0.22590191]
[1727449840671,0.150689,66362.0,66358.0,0.40598494]
[1727449840914,0.150686,66364.0,66360.0,0.150692]
[1727449841166,0.22590191,66372.0,66358.0,0.25528794]
[1727449841167,0.150694,66360.0,66358.0,0.25528794]
[1727449841416,0.150689,66362.0,66359.0,0.150695]
[1727449841645,0.301363,66366.0,66358.0,0.25528794]
[1727449841646,0.150695,66359.0,66358.0,0.26128794]
[1727449843899,0.150661,66374.0,66372.0,0.003]
[1727449844155,0.16611615,66373.0,66372.0,0.003]
[1727449844411,0.15426235,66373.0,66372.0,0.003]
[1727449844638,0.150663,66373.0,66372.0,0.003]
[1727449844874,0.150663,66373.0,66364.0,0.22590191]
[1727449844875,0.150661,66374.0,66373.0,0.007]
[1727449845110,0.150661,66374.0,66373.0,0.01]
[1727449845584,0.150674,66369.0,66365.0,0.15068]
[1727449845821,0.150674,66369.0,66366.0,0.15528794]
[1727449846311,0.150667,66372.0,66368.0,0.150673]
[1727449846559,0.002,66373.0,66367.0,0.1]
[1727449846796,0.002,66373.0,66362.0,0.1795]
[1727449846797,0.150686,66363.0,66362.0,0.1795]
[1727449847056,0.150686,66363.0,66362.0,0.25528794]
[1727449847297,0.301369,66364.0,66353.0,0.2433]
[1727449847298,0.150703,66356.0,66353.0,0.2433]
[1727449847535,0.301383,66361.0,66354.0,0.25528794]
[1727449847777,0.150695,66359.0,66356.0,0.1]
[1727449848015,0.301383,66361.0,66358.0,0.1]
[1727449848253,0.301383,66361.0,66358.0,0.25528794]
[1727449848492,0.150695,66359.0,66358.0,0.1]
[1727449848730,0.00459935,66363.0,66355.0,0.1]
[1727449848731,0.25939314,66363.0,66355.0,0.1]
[1727449848989,0.150702,66356.0,66355.0,0.1]
[1727449849232,0.06726991,66370.0,66355.0,0.1]
[1727449849233,0.150695,66359.0,66358.0,0.003]
[1727449849462,0.150671,66370.0,66361.0,0.150689]
[1727449849717,0.27074852,66372.0,66359.0,0.15528794]
[1727449849718,0.150678,66367.0,66359.0,0.15528794]
[1727449849963,0.150673,66369.0,66360.0,0.150692]
[1727449850189,0.150672,66370.0,66361.0,0.38118985]
[1727449850422,0.301336,66371.0,66361.0,0.15528794]
[1727449850660,0.301336,66371.0,66361.0,0.30597794]
[1727449850911,0.150673,66369.0,66361.0,0.30597794]
[1727449851469,0.150675,66368.0,66361.0,0.30597794]
[1727449852154,0.301344,66370.0,66362.0,0.150687]
[1727449852155,0.150672,66370.0,66362.0,0.150687]
[1727449852383,0.301333,66372.0,66363.0,0.150684]
[1727449852605,0.159673,66369.0,66363.0,0.150684]
[1727449852830,0.009,66369.0,66362.0,0.15528794]
[1727449853056,0.00359935,66368.0,66362.0,0.15528794]
[1727449853339,0.15427435,66368.0,66362.0,0.15528794]
[1727449853764,0.301351,66368.0,66359.0,0.150695]
[1727449854014,0.25939314,66374.0,66358.0,0.004]
[1727449854015,0.25939314,66364.0,66358.0,0.004]
[1727449854240,0.25939314,66369.0,66359.0,0.150693]
[1727449854465,0.25939314,66369.0,66358.0,0.004]
[1727449854466,0.301338,66371.0,66362.0,0.301375]
[1727449854694,0.25939314,66374.0,66362.0,0.301375]
[1727449854695,0.008,66368.0,66363.0,0.001]
[1727449854916,0.158675,66368.0,66364.0,0.150683]
[1727449855148,0.150675,66368.0,66364.0,0.150683]
[1727449855422,0.25939314,66374.0,66362.0,0.301375]
[1727449855655,0.067259,66378.0,66362.0,0.45666494]
[1727449855656,0.006,66369.0,66362.0,0.45666494]
[1727449855874,0.006,66369.0,66368.0,0.150675]
[1727449856129,0.000828,66381.0,66368.0,0.15830129]
[1727449856354,0.000828,66381.0,66380.0,0.150647]
[1727449856818,0.000828,66381.0,66379.0,0.150649]
[1727449857035,0.000828,66381.0,66380.0,0.150647]
[1727449857484,0.000828,66381.0,66379.0,0.150649]
[1727449857697,0.000828,66381.0,66377.0,0.301305]
[1727449857933,0.000828,66381.0,66380.0,0.150647]
[1727449858157,0.000828,66381.0,66380.0,0.40894734]
[1727449858392,0.000828,66381.0,66380.0,0.40593494]
[1727449858622,0.000828,66381.0,66380.0,0.56253494]
[1727449859404,0.22590191,66395.0,66380.0,0.49488794]
[1727449859647,0.22590191,66395.0,66394.0,0.395616]
[1727449859878,0.22590191,66395.0,66394.0,0.55090394]
[1727449860078,0.22590191,66403.0,66399.0,0.150603]
[1727449860358,0.000828,66405.0,66394.0,0.40028794]
[1727449860591,0.150594,66404.0,66399.0,0.150602]
[1727449861062,0.000828,66405.0,66398.0,0.301211]
[1727449861291,0.000828,66405.0,66401.0,0.150598]
[1727449861780,0.000828,66405.0,66400.0,0.1506]
[1727449862012,0.151595,66404.0,66399.0,0.150604]
[1727449862262,0.302012,66405.0,66396.0,0.22590191]
[1727449862497,0.150594,66404.0,66400.0,0.150602]
[1727449862737,0.002828,66405.0,66404.0,0.150593]
[1727449862976,0.002828,66405.0,66395.0,0.1]
[1727449863216,0.002828,66405.0,66401.0,0.150598]
[1727449863217,0.000828,66405.0,66401.0,0.150598]
[1727449863453,0.000828,66405.0,66398.0,0.22590191]
[1727449863454,0.000828,66405.0,66403.0,0.150595]
[1727449863926,0.000828,66405.0,66402.0,0.150596]
[1727449864870,0.000828,66405.0,66400.0,0.301204]
[1727449865104,0.151419,66405.0,66395.0,0.25528794]
[1727449865341,0.001,66404.0,66401.0,0.150599]
[1727449865593,0.001,66404.0,66401.0,0.151599]
[1727449866083,0.000828,66405.0,66397.0,0.22590191]
[1727449866327,0.000828,66405.0,66402.0,0.150597]
[1727449866574,0.000828,66405.0,66404.0,0.150593]
[1727449866808,0.000828,66405.0,66404.0,0.30588094]
[1727449868550,0.000828,66405.0,66404.0,0.53559228]
[1727449868795,0.001828,66405.0,66404.0,0.54658094]
[1727449869508,0.001828,66405.0,66404.0,0.64658094]
[1727449878660,0.001828,66405.0,66404.0,1.34658094]
[1727449878895,0.001828,66405.0,66404.0,0.41988094]
[1727449880388,0.001828,66405.0,66404.0,0.26928794]
[1727449881140,0.152419,66405.0,66404.0,0.014]
[1727449881651,0.00542735,66405.0,66390.0,0.22590191]
[1727449881907,0.15062,66392.0,66391.0,0.22590191]
[1727449882203,0.32328082,66392.0,66391.0,0.22590191]
[1727449882412,0.32328082,66392.0,66383.0,0.22590191]
[1727449882413,0.150638,66384.0,66383.0,0.22590191]
[1727449882655,0.150643,66382.0,66381.0,0.001656]
[1727449885312,0.159643,66382.0,66381.0,0.001656]
[1727449885542,0.154643,66382.0,66381.0,0.001656]
[1727449885783,0.150643,66382.0,66381.0,0.001656]
[1727449886057,0.009,66382.0,66381.0,0.15694394]
[1727449886288,0.004,66382.0,66381.0,0.15694394]
[1727449887008,0.004,66382.0,66381.0,0.15937067]
[1727449887295,0.154643,66382.0,66381.0,0.15694394]
[1727449887492,0.009,66382.0,66381.0,0.15694394]
[1727449887723,0.154643,66382.0,66381.0,0.001656]
[1727449887956,0.150643,66382.0,66381.0,0.001656]
[1727449888191,0.151643,66382.0,66381.0,0.001656]
[1727449888429,0.001,66382.0,66381.0,0.001656]
[1727449888659,0.150641,66383.0,66381.0,0.001656]
[1727449889154,0.150641,66383.0,66381.0,0.004656]
[1727449889631,0.150643,66382.0,66381.0,0.001656]
[1727449889948,0.150643,66382.0,66381.0,0.003656]
[1727449890314,0.301276,66385.0,66381.0,0.003656]
[1727449890557,0.150643,66382.0,66381.0,0.003656]
[1727449891275,0.150643,66382.0,66381.0,0.001656]
[1727449891501,0.301263,66388.0,66381.0,0.15694394]
[1727449891750,0.150636,66385.0,66382.0,0.15528794]
[1727449891987,0.30125,66390.0,66382.0,0.15528794]
[1727449892229,0.15064,66383.0,66382.0,0.15528794]
[1727449892459,0.18064,66383.0,66382.0,0.15528794]
[1727449894413,0.03,66383.0,66382.0,0.15528794]
[1727449894647,0.03,66383.0,66382.0,0.15828794]
[1727449895341,0.18064,66383.0,66382.0,0.15828794]
[1727449895809,0.15064,66383.0,66382.0,0.15828794]
[1727449897754,0.301273,66385.0,66382.0,0.15828794]
[1727449898013,0.15064,66383.0,66382.0,0.15828794]
[1727449898719,0.15064,66383.0,66382.0,0.15528794]
[1727449898960,0.150632,66387.0,66382.0,0.15628794]
[1727449899199,0.150634,66386.0,66382.0,0.15628794]
[1727449899688,0.301254,66390.0,66382.0,0.15628794]
[1727449899932,0.150635,66386.0,66382.0,0.15628794]
[1727449900439,0.301244,66392.0,66382.0,0.15528794]
[1727449900630,0.001,66386.0,66382.0,0.15528794]
[1727449900872,0.151635,66386.0,66382.0,0.15828794]
[1727449901356,0.150643,66382.0,66381.0,0.001656]
[1727449901889,0.301267,66387.0,66381.0,0.001656]
[1727449902125,0.150632,66387.0,66382.0,0.001]
[1727449902351,0.301254,66390.0,66382.0,0.001]
[1727449902587,0.15063,66388.0,66382.0,0.001]
[1727449902817,0.301256,66389.0,66382.0,0.001]
[1727449903050,0.47392182,66388.0,66382.0,0.001]
[1727449903295,0.15064,66383.0,66382.0,0.001]
[1727449903542,0.17266082,66383.0,66381.0,0.001656]
[1727449903801,0.150675,66368.0,66367.0,0.22590191]
[1727449904037,0.32333582,66368.0,66367.0,0.22590191]
[1727449904282,0.32333582,66368.0,66355.0,0.001656]
[1727449904283,0.150691,66361.0,66355.0,0.001656]
[1727449904515,0.15429235,66360.0,66355.0,0.001656]
[1727449904757,0.452087,66359.0,66355.0,0.001656]
[1727449904994,0.17266082,66357.0,66355.0,0.001656]
[1727449905534,0.00359935,66360.0,66355.0,0.001656]
[1727449905770,0.150685,66364.0,66357.0,0.150699]
[1727449906015,0.301358,66367.0,66355.0,0.15694394]
[1727449906256,0.150687,66363.0,66355.0,0.15694394]
[1727449906526,0.301358,66367.0,66356.0,0.150701]
[1727449906787,0.150689,66362.0,66356.0,0.150701]
[1727449907509,0.03,66361.0,66356.0,0.150701]
[1727449907732,0.03,66361.0,66355.0,0.30764794]
[1727449908714,0.03,66361.0,66356.0,0.004]
[1727449908961,0.180691,66361.0,66356.0,0.004]
[1727449909200,0.150691,66361.0,66356.0,0.004]
[1727449909452,0.150693,66360.0,66356.0,0.004]
[1727449909684,0.150689,66362.0,66356.0,0.154701]
[1727449909929,0.30137,66364.0,66356.0,0.004]
[1727449910174,0.30137,66364.0,66356.0,0.30598894]
[1727449910414,0.301308,66378.0,66363.0,0.17266082]
[1727449910659,0.08970735,66387.0,66368.0,0.301348]
[1727449910660,0.22590191,66370.0,66368.0,0.301348]
[1727449910907,0.22590191,66377.0,66369.0,0.15528794]
[1727449910908,0.15066,66375.0,66369.0,0.15528794]
[1727449911166,0.15066,66375.0,66369.0,0.30595994]
[1727449911668,0.150662,66374.0,66369.0,0.15528794]
[1727449911920,0.150662,66374.0,66369.0,0.30595994]
[1727449912158,0.150664,66373.0,66369.0,0.15528794]
[1727449912404,0.03,66371.0,66369.0,0.15528794]
[1727449912914,0.001,66370.0,66369.0,0.15528794]
[1727449913162,0.001,66370.0,66369.0,0.30595994]
[1727449913406,0.001,66370.0,66369.0,0.53135994]
[1727449913640,0.03,66371.0,66369.0,0.47868794]
[1727449913896,0.22590191,66382.0,66378.0,0.150651]
[1727449914141,0.22590191,66382.0,66378.0,0.150652]
[1727449914384,0.150642,66383.0,66378.0,0.150652]
[1727449914867,0.150642,66383.0,66373.0,0.301322]
[1727449914868,0.301259,66388.0,66380.0,0.150647]
[1727449915099,0.150637,66385.0,66375.0,0.150658]
[1727449915356,0.301274,66385.0,66376.0,0.45660094]
[1727449915599,0.15064,66384.0,66378.0,0.15065]
[1727449915827,0.150637,66385.0,66380.0,0.150647]
[1727449916321,0.150622,66392.0,66380.0,0.30593494]
[1727449916588,0.22590191,66392.0,66380.0,0.30593494]
[1727449917062,0.67776891,66392.0,66380.0,0.30593494]
[1727449917295,0.150623,66391.0,66380.0,0.30593494]
[1727449917529,0.150626,66390.0,66380.0,0.30593494]
[1727449917756,0.67776891,66392.0,66380.0,0.30593494]
[1727449917990,0.150623,66391.0,66380.0,0.30593494]
[1727449918221,0.150623,66391.0,66380.0,0.45133494]
[1727449918452,0.22590191,66392.0,66380.0,0.45133494]
[1727449918453,0.150625,66390.0,66380.0,0.45133494]
[1727449918685,0.150623,66391.0,66380.0,0.45133494]
[1727449919434,0.22590191,66392.0,66380.0,0.55133494]
[1727449919674,0.47387782,66398.0,66380.0,0.64043494]
[1727449919675,0.002828,66381.0,66380.0,0.64043494]
[1727449919925,0.22590191,66399.0,66398.0,0.150606]
[1727449920171,0.22590191,66399.0,66398.0,0.30589394]
[1727449920480,1.82,66400.0,66399.0,0.150604]
[1727449920910,1.82,66400.0,66398.0,0.15528794]
[1727449921153,1.82,66400.0,66398.0,0.15628794]
[1727449921403,1.82,66400.0,66398.0,0.30589294]
[1727449921648,1.82,66400.0,66399.0,0.30589194]
[1727449922598,1.82,66400.0,66399.0,0.15528794]
[1727449922832,1.821,66400.0,66399.0,0.15528794]
[1727449923331,1.821,66400.0,66399.0,0.30589194]
[1727449923806,1.821828,66400.0,66399.0,0.30589194]
[1727449924045,1.820828,66400.0,66399.0,0.15528794]
[1727449924313,1.99348882,66400.0,66396.0,0.1391]
[1727449924550,1.99348882,66400.0,66399.0,0.005]
[1727449924791,1.99348882,66400.0,66397.0,0.15528794]
[1727449925259,0.00359935,66399.0,66394.0,0.1]
[1727449925500,0.17266082,66395.0,66393.0,0.1]
[1727449925736,0.17266082,66399.0,66393.0,0.1]